Cogmind - Beta 14 @@@ ROGUE MODE // 2024.12.12 @ 09:32:43 Player: AshCrow Result: Destroyed by B-75 Beast with Magnetic Acceleration Cannon Performance ------------- Evolutions (2) 1000 Regions Visited (4) 800 Robots Destroyed (34) 170 Value Destroyed (1175) 1175 Prototype IDs (0) 0 Alien Tech Used (0) 0 Bonus (200) 200 TOTAL SCORE: 3345 Bonus ------- Entered Garrisons 200 Cogmind --------- Core Integrity 0/550 Matter 265/300 Energy 99/100 System Corruption 3% Temperature Cool (0) Movement Core (50) Location -8/Garrison Parts ------- > --- POWER (1) -------- (None) > --- PROPULSION (3) --- Linear Gravjet > --- UTILITY (3) ------ (None) > --- WEAPON (4) ------- (None) > --- INVENTORY (5) ---- Improved Ion Engine Light Treads Authchip [R/Combat] Small Laser Heavy Phase Cannon Peak State ------------ > --- POWER ------------ (None) > --- PROPULSION ------- Light Treads Light Treads Linear Gravjet > --- UTILITY ---------- Improved Signal Interpreter Layered Heavy Armor Plating > --- WEAPON ----------- Heavy Phase Cannon Light Assault Rifle Light Assault Rifle > --- INVENTORY -------- Improved Ion Engine Improved Ion Engine Authchip [R/Combat] Small Laser [Rating: 31] Favorites ----------- Power Improved Ion Engine Engine Improved Ion Engine Power Core Light Nuclear Core Propulsion Light Treads Treads Light Treads Hover Unit Linear Gravjet Utility Small Storage Unit Device Improved Sensor Array Storage Small Storage Unit Processor Signal Interpreter Protection Hardened Medium Armor Plating Weapon Light Assault Rifle Energy Gun Small Laser Energy Cannon Light EM Pulse Cannon Ballistic Gun Light Assault Rifle Build | -11 -10 -9 -8 -8 ------- Run | Yrd Mat Mat Mat Gar Slots Evolved 4 | . . 2 2 . Power . | . . . . . Propulsion 1 | . . 1 . . Utility 1 | . . 1 . . Weapon 2 | . . . 2 . Parts Attached 47 | 6 3 5 19 14 Power 6 | 1 1 . 1 3 Engine 5 | 1 1 . 1 2 Core 1 | . . . . 1 Reactor . | . . . . . Propulsion 15 | 2 . 2 7 4 Treads 13 | 2 . 2 7 2 Leg . | . . . . . Wheel . | . . . . . Hover 2 | . . . . 2 Flight . | . . . . . Utility 10 | 1 2 1 5 1 Device 3 | . 1 . 2 . Storage 1 | 1 . . . . Processor 2 | . 1 . 1 . Hackware . | . . . . . Protection 4 | . . 1 2 1 Artifact . | . . . . . Weapon 16 | 2 . 2 6 6 Energy Gun 6 | 2 . . 3 1 Energy Cannon 4 | . . 2 1 1 Ballistic Gun 6 | . . . 2 4 Ballistic Cannon . | . . . . . Launcher . | . . . . . Special Weapon . | . . . . . Impact Weapon . | . . . . . Slashing Weapon . | . . . . . Piercing Weapon . | . . . . . Special Melee Weapon . | . . . . . Unidentified Prototypes . | . . . . . Corrupted Parts 1 | . . . . 1 System Corruption 1 | . . . . 1 Parts Lost 20 | . . 1 3 16 Power 4 | . . . 1 3 Propulsion 5 | . . . 1 4 Utility 4 | . . 1 . 3 Weapon 7 | . . . 1 6 Highest Loss Streak 6 | . . 1 2 6 To Critical Strikes . | . . . . . Average Slot Usage (%) 87 | . 92 91 93 73 Engine 8 | . 14 11 7 5 Treads 25 | . 28 32 26 19 Device 2 | . . . 3 5 Storage 9 | . 14 11 9 5 Processor 8 | . 6 11 9 8 Protection 2 | . . 3 3 1 Energy Gun 15 | . 28 20 13 6 Energy Cannon 1 | . . 1 3 1 Ballistic Gun 10 | . . . 16 17 Peak Build Rating 31 | 6 11 13 27 31 Average Rating 15 | 4 7 11 21 19 On Entrance 11 | . 6 9 13 27 Naked Turns . | . . . . . Heaviest Build 39 | 11 16 20 32 39 Greatest Support 65 | 40 40 63 65 65 Greatest Overweight (x) 9 | 1 . . . 9 Average Overweight (x) . | . . . . . Largest Inventory Capacity 8 | 8 8 8 8 8 Average Capacity 7 | 6 8 8 8 6 Most Carried 8 | 4 8 8 8 8 Average Carried 7 | 2 6 7 7 6 Final Capacity 8 | 8 8 8 8 5 Final Carried 8 | 4 8 8 8 5 Class Distribution -------------------- 45% | Mutant 30% | Scavenger-Skirmisher 14% | Scavenger-Tank 3% | Gunner 3% | Scavenger-Mutant Dominant Class ---------------- Mutant | -10/Materials Mutant | -9/Materials Scavenger-Tank | -8/Materials Scavenger-Skirmisher | -8/Garrison Resources | -11 -10 -9 -8 -8 ----------- Run | Yrd Mat Mat Mat Gar Matter Collected 836 | 178 102 37 367 152 Remotely . | . . . . . Salvage Created 1379 | . 103 133 735 408 Parts 87 | . 7 9 46 25 Haulers Intercepted . | . . . . . Recyclers Shooed 1 | . 1 . . . Parts Field Recycled . | . . . . . Retrieved Matter . | . . . . . Parts Self-Destructed . | . . . . . Prevented . | . . . . . Kills | -11 -10 -9 -8 -8 ------- Run | Yrd Mat Mat Mat Gar Combat Hostiles Destroyed 33 | . 2 4 16 11 Guns 27 | . 2 3 12 10 Cannons 5 | . . . 4 1 Classes Destroyed 5 | . 1 2 2 . Watcher 1 | . . . 1 . Swarmer 10 | . . 2 4 4 Grunt 17 | . 2 . 8 7 Brawler 1 | . . . 1 . Sentry 5 | . . 2 3 . Best Kill Streak 6 | . 2 2 6 4 Combat Bots Only 6 | . 2 2 6 4 Max Kills in Single Turn 2 | . 1 1 1 2 Gunslinging 1 | . . . . 1 Exploded . | . . . . . Melee . | . . . . . Uniques/NPCs Destroyed . | . . . . . Combat | -11 -10 -9 -8 -8 -------- Run | Yrd Mat Mat Mat Gar Hostile Shots Fired 288 | . 7 39 81 161 Missed 77 | . 3 8 19 47 Damage Taken 3667 | . 187 373 870 2237 Core 614 | . 34 23 78 479 Absorbed by Shields . | . . . . . Core Remaining (%) 93 | 100 86 94 . . Volleys Fired 122 | . 6 19 48 49 Largest 4 | . 2 2 4 4 Hottest 175 | . 90 90 175 126 Shots Fired 299 | . 12 38 113 136 Gun 267 | . 12 38 94 123 Cannon 32 | . . . 19 13 Launcher . | . . . . . Special . | . . . . . Kinetic 191 | . . . 78 113 Thermal 73 | . 12 38 10 13 Explosive . | . . . . . Electromagnetic 35 | . . . 25 10 Robot Hit Streak 15 | . 5 15 9 9 Robot Miss Streak 6 | . 1 6 4 2 Penetration Max . | . . . . . Secondary Targets 2 | . . . . 2 Max Gunslinging Chain 1 | . . . . 1 Shots Hit Robots 188 | . 9 22 61 96 Core Hits 82 | . 6 4 35 37 Critical Kills . | . . . . . Critical Parts Destroyed . | . . . . . Critical Strikes 3 | . . 1 . 2 Burn 3 | . . 1 . 2 Melee Attacks . | . . . . . Impact . | . . . . . Slashing . | . . . . . Piercing . | . . . . . Sneak Attacks . | . . . . . Combat Hostiles . | . . . . . Follow-up Attacks . | . . . . . Damage Inflicted 2425 | . 105 257 858 1205 Guns 1790 | . 104 257 639 790 Cannons 606 | . . . 216 390 Explosions . | . . . . . Melee . | . . . . . Ramming 29 | . 1 . 3 25 Kinetic 1161 | . . . 491 670 Thermal 773 | . 104 257 74 338 Explosive . | . . . . . Electromagnetic 462 | . . . 290 172 Impact . | . . . . . Slashing . | . . . . . Piercing . | . . . . . Highest Corruption 3 | . . . . 3 Average Corruption 1 | . . . . 1 Corruption Purged . | . . . . . Corruption Blocked . | . . . . . Effects 3 | . . . . 3 Matter Fused 1 | . . . . 1 Energy Discharges 1 | . . . . 1 Data Loss (major) 1 | . . . . 1 Overload Shots . | . . . . . Overflow Damage 9 | . . . . 9 Projectiles 9 | . . . . 9 Explosions . | . . . . . Melee . | . . . . . Knockbacks . | . . . . . Impact . | . . . . . Kinetic . | . . . . . Secondary . | . . . . . Self-Inflicted Damage 24 | . . . . 24 Shots . | . . . . . Rammed 3 | . 1 . 1 1 Targets Rammed 3 | . 1 . 1 1 Kicked . | . . . . . Crushed . | . . . . . Highest Temperature 520 | . 192 363 432 520 Average Temperature 139 | . 92 156 128 146 Received Heat Transfer 1020 | . 33 36 378 573 Effects 6 | . . . 2 4 Shutdowns 1 | . . . 1 . Energy Bleed 2 | . . . 1 1 Interference 1 | . . . . 1 Short Circuit 2 | . . . . 2 Siege Activations . | . . . . . Robots Corrupted . | . . . . . Combat Hostiles . | . . . . . Parts Fried 1 | . . . 1 . Impact Corruptions . | . . . . . Robots Melted 1 | . . 1 . . Combat Hostiles 1 | . . 1 . . Parts Melted 6 | . 1 2 1 2 Heat Transferred 1725 | . 285 756 186 498 Parts Sabotaged . | . . . . . Parts Stolen . | . . . . . Parts Stripped . | . . . . . Power Chain Reactions . | . . . . . Alert | -11 -10 -9 -8 -8 ------- Run | Yrd Mat Mat Mat Gar Peak Influence 331 | . 71 156 273 331 Initial 172 | . . . . 172 Average 141 | . 26 98 152 251 Maximum Alert Level 1 | . . . 1 1 Low Security (%) 75 | 100 100 100 77 36 Level 1 24 | . . . 22 63 Level 2 . | . . . . . Level 3 . | . . . . . Level 4 . | . . . . . Level 5 . | . . . . . High Security . | . . . . . Max Security . | . . . . . Squads Dispatched 2 | . . 1 1 . Investigation 1 | . . . 1 . Extermination . | . . . . . Reinforcement 1 | . . 1 . . Assault . | . . . . . Garrison . | . . . . . Intercept . | . . . . . Searches Triggered . | . . . . . Construction Impeded . | . . . . . Haulers Reinforced . | . . . . . Active Scanning Responses . | . . . . . Cargo Convoy Interrupts . | . . . . . Stealth | -11 -10 -9 -8 -8 --------- Run | Yrd Mat Mat Mat Gar Distress Signals 4 | . . 1 2 1 Communications Jammed . | . . . . . Distress Signals . | . . . . . Times Spotted 49 | . 3 7 24 15 Peak Tracking Total 6 | . 2 4 6 6 Tactical Retreats 2 | . . 1 1 . Traps | -11 -10 -9 -8 -8 ------- Run | Yrd Mat Mat Mat Gar Traps Triggered 5 | . 1 . 1 3 Indirectly . | . . . . . Trap Hack Attempts . | . . . . . Triggered . | . . . . . Disarmed . | . . . . . Reprogrammed . | . . . . . Reused . | . . . . . Traps Extracted . | . . . . . Installed . | . . . . . Triggered . | . . . . . Machines | -11 -10 -9 -8 -8 ---------- Run | Yrd Mat Mat Mat Gar Machines Disabled . | . . . . . Max in Single Turn . | . . . . . Machines Repaired . | . . . . . Machines Dismantled . | . . . . . Machines Sabotaged . | . . . . . Overloaded Fab Kills . | . . . . . Hacking | -11 -10 -9 -8 -8 --------- Run | Yrd Mat Mat Mat Gar Machines Accessed 6 | . 1 2 2 1 Terminals 5 | . 1 2 1 1 Fabricators . | . . . . . Repair Stations . | . . . . . Recycling Units . | . . . . . Scanalyzers . | . . . . . Garrison Access 1 | . . . 1 . Total Hacks 10 | . 1 2 6 1 Successful 5 | . 1 1 2 1 Failed 5 | . . 1 4 . Catastrophic 3 | . . . 3 . Database Lockouts . | . . . . . Manual 3 | . 1 2 . . Terminals 9 | . 1 2 5 1 Fabricators . | . . . . . Repair Stations . | . . . . . Recycling Units . | . . . . . Scanalyzers . | . . . . . Garrison Access 1 | . . . 1 . Terminal Hacks 2 | . . . 1 1 Branch Access Points 1 | . . . 1 . Emergency Access Points 1 | . . . . 1 Fabricator Hacks . | . . . . . Repair Station Hacks . | . . . . . Recycling Unit Hacks . | . . . . . Scanalyzer . | . . . . . Garrison Access Hacks 1 | . . . 1 . Unlock Access 1 | . . . 1 . Unauthorized Hacks 2 | . 1 1 . . Terminals 2 | . 1 1 . . Assimilate 2 | . 1 1 . . Fabricators . | . . . . . Repair Stations . | . . . . . Recycling Units . | . . . . . Scanalyzers . | . . . . . Garrison Access . | . . . . . Data Cores Recovered . | . . . . . Used . | . . . . . Hacking Detections 3 | . . 1 2 . Full Trace Events 1 | . . . 1 . Feedback Events . | . . . . . Feedback Blocked . | . . . . . Robot Schematics Acquired . | . . . . . Robots Built . | . . . . . Authchips . | . . . . . Time . | . . . . . Total Robot Build Rating . | . . . . . Part Schematics Acquired . | . . . . . Parts Built . | . . . . . Authchips . | . . . . . Time . | . . . . . Total Part Build Rating . | . . . . . Parts Repaired . | . . . . . Time . | . . . . . Parts Recycled . | . . . . . Recycled Matter . | . . . . . Retrieved Matter . | . . . . . Retrieved Components . | . . . . . Parts Scanalyzed . | . . . . . Part Schematics Acquired . | . . . . . Parts Damaged . | . . . . . Bothacking | -11 -10 -9 -8 -8 ------------ Run | Yrd Mat Mat Mat Gar Used RIF Installer . | . . . . . Robots Hacked . | . . . . . Non-combat . | . . . . . Combat . | . . . . . Robot Hacks Applied . | . . . . . Relay Couplers Released . | . . . . . Fabnet Peak Effective % . | . . . . . Robots Rewired . | . . . . . Allies Hacked . | . . . . . Hacks Repelled . | . . . . . Allies | -11 -10 -9 -8 -8 -------- Run | Yrd Mat Mat Mat Gar Total Allies . | . . . . . Largest Group . | . . . . . Highest-Rated Group . | . . . . . Highest-Rated Ally . | . . . . . Total Orders . | . . . . . Ally Attacks . | . . . . . Total Damage . | . . . . . Kills . | . . . . . Allies Corrupted . | . . . . . Allies Melted . | . . . . . Intel | -11 -10 -9 -8 -8 ------- Run | Yrd Mat Mat Mat Gar Robot Analysis Total . | . . . . . Derelict Logs Recovered . | . . . . . Drone Launches . | . . . . . Drone Recoveries . | . . . . . Exploration | -11 -10 -9 -8 -8 ------------- Run | Yrd Mat Mat Mat Gar Turns Passed 2245 | 81 420 402 726 616 Spaces Moved 1133 | 52 243 200 340 298 Core 66 | 14 . . . 52 Treads 1053 | 38 243 200 340 232 Legs . | . . . . . Wheels . | . . . . . Hover 14 | . . . . 14 Flight . | . . . . . Fastest Speed 40 | 50 160 160 155 40 Average Speed 153 | 132 160 160 156 144 Slowest Speed 500 | 160 160 160 160 500 Overloaded Moves . | . . . . . Propulsion Burnouts . | . . . . . Robots Hopped . | . . . . . Cave-ins Triggered . | . . . . . Exploration Rate (%) 29 | 5 38 19 38 49 Regions Visited 4 Branch Regions . Pre-discovered Areas . | . . . . . Known Exits Taken 3 | . 1 1 1 . Unknown Exits Taken 1 | 1 . . . . Scrap Searched . | . . . . . Spaces Dug . | . . . . . Terrain Destroyed . | . . . . . Melee . | . . . . . Projectile . | . . . . . AOE . | . . . . . Terrain Rammed 3 | . . . . 3 Walls Destroyed 1 | . . . . 1 Machines Disabled . | . . . . . Actions | -11 -10 -9 -8 -8 --------- Run | Yrd Mat Mat Mat Gar Total 1416 | 61 261 245 447 402 Wait 70 | . 2 17 31 20 Move 1129 | 51 242 199 339 298 Hop . | . . . . . Pick Up 15 | 4 5 2 . 4 Fast Attach 21 | 6 1 2 6 6 Attach 6 | . . . 2 4 Detach 3 | . . . 1 2 Swap 20 | . 2 3 11 4 Drop 19 | . 2 3 8 6 Fire 122 | . 6 19 48 49 Melee . | . . . . . Ram 4 | . . . . 4 Kick . | . . . . . Crush 2 | . 1 . 1 . Escape Stasis . | . . . . . Rewire 5 | . . . . 5 Trap . | . . . . . Miscellaneous . | . . . . . Route ------- -11/Scrapyard -10/Materials -9/Materials -8/Materials -8/Garrison History --------- Turn | Location | Event 2 | -11/Scrapyard | Met Revision 17 12 | -11/Scrapyard | Discovered new exit (range 15) 82 | -11/Scrapyard | Entered Materials 280 | -10/Materials | Discovered new exit (range 6) 300 | -10/Materials | Build established: Mutant 500 | -10/Materials | Identified exit to Materials 502 | -10/Materials | Entered another Materials area 502 | -9/Materials | Evolved 2 slots: Propulsion x1, Utility x1 900 | -9/Materials | Discovered new exit (range 3) 903 | -9/Materials | Identified exit to Materials 904 | -9/Materials | Entered another Materials area 904 | -8/Materials | Evolved 2 slots: Weapon x2 1300 | -8/Materials | Build established: Scavenger-Tank 1628 | -8/Materials | Build established: Scavenger-Skirmisher 1628 | -8/Materials | Identified exit to Garrison 1630 | -8/Materials | Entered Garrison 1672 | -8/Garrison | Triggered checkpoint 1719 | -8/Garrison | Lost 3 parts (1n2w) 1952 | -8/Garrison | Triggered checkpoint 2084 | -8/Garrison | Lost 6 parts (1p2n1u2w) 2102 | -8/Garrison | Triggered checkpoint 2161 | -8/Garrison | Spotted B-75 Beast 2173 | -8/Garrison | Core integrity fell below 50% 2222 | -8/Garrison | Lost 4 parts (1p1u2w) 2231 | -8/Garrison | Core integrity fell below 20% 2246 | -8/Garrison | Destroyed by B-75 Beast with Magnetic Acceleration Cannon Last Messages --------------- 02207_ Linear Gravjet broken. 02207_ Destabilizing: Short circuit. 02220_ Attempting to rewire M-14 Sweeper. 02220_ M-14 Sweeper is unpowered. 02225_ Attempting to rewire M-14 Sweeper. 02225_ M-14 Sweeper is unpowered. 02226_ Attempting to rewire M-14 Sweeper. 02226_ M-14 Sweeper is unpowered. 02227_ Attempting to rewire M-14 Sweeper. 02227_ M-14 Sweeper is unpowered. 02228_ Attempting to rewire M-14 Sweeper. 02228_ M-14 Sweeper is unpowered. 02230_ Triggered Heavy Explosive Trap. 02230_ An explosion rips through the floor. 02230_ Storage Shell breached. 02243_ Broken Linear Gravjet destroyed. 02244_ Slammed into B-75 Beast. 02244_ Triggered Tesla Bomb Trap. 02244_ A bubble of electromagnetic force engulfs the area. Map ----- +----------------------------------------------------+ | ??????????????????????????????????????? | | ??????????????????????????????????????? | | ??????????????????????????????????????? | | ??????????????????????????????????????? | | ??????????????????????????????????????? | | ??????????????????????????????????????? | | ??????????????????????????????????????? | | ??????????????????????????????????????? | | ??????????????????????????????????????? | | ??????????????????????????????????????? | | ??????????????????????????????????????? | | ??????????????????????????????????????? | | ??????????????????????????????????????? | | ??????????????????????????????????????? | | ??????????????????????????????????????? | | ??????????????????????????????????????? | | #############?????????????????????????? | | ??????????????????????????? | | #??????????????????????????????? | | +??????????????????????????????? | | #### #??????????????????????????????? | | #??# #????????????????########?##???? | | #??# #????????????????# "&&" "&&"???? | | #??# #????????????????# &&" "&&"???? | | #??# ###+##??#######?##% "#??? | | #??# ## #??#"""""#?# @ #??? | | #### ## ##### #### ""#??? | | = + BB m #??? | | + BB m #??? | | #### ######+"######### ""#??? | | ???# #????# #####???# #??? | | ???# #????# %#???## """" """"#??? | | ???# #??### ###??# "??" "??????? | | ???# #??#"" %"#??# "??" "??????? | | ???# #??#" !"#??###??###??????? | | ???# #??#" ++"+ ! #????????????????? | | ???# #??#"= + +%! #????????????????? | | ???# #??#"[ + + | #????????????????? | | ???# #??#"] ++""%!%#????????????????? | | ???# #??#"! [ #????????????????? | | ???# #??#"" % ""#????????????????? | | ???# #??#"""|[!! ""#????????????????? | | ???? ???#""""""""""#????????????????? | | ??????????############????????????????? | | ??????????????????????????????????????? | | ??????????????????????????????????????? | | ??????????????????????????????????????? | | ??????????????????????????????????????? | | ??????????????????????????????????????? | | ??????????????????????????????????????? | +----------------------------------------------------+ Best States ------------- Heat Dissipation 39 Energy Generation 18 Energy Capacity 265 Matter Stores 300 Matter Capacity 300 Sight Range 16 Robot Scan Range 15 Terrain Scan Density 10 Armor Coverage 600 Evasion (%) 50 Recoil Reduction 3 Authchip Count 3 Item Schematics ----------------- None Robot Schematics ------------------ None Fabricated ------------ Nothing Alien Tech Used ----------------- None Achievements -------------- None Challenges ------------ None Game ------ Seed ShieldEncryptedFocus Manual? 0 Play Time 00:25:27 Cumulative 21.9 hours Start 2024.12.12 @ 09:09:29 End 2024.12.12 @ 09:32:43 Sessions 1 Manual Loads 0 Difficulty Rogue Special Mode None Game No. 28 Rogue 28 Adventurer 0 Explorer 0 Win Type - Total 0 Types 0/0/0/0/0/0/0/0/0 Lore% 13 Gallery% 22 Achievement% 20 Wizard Run 0 Options --------- Layout 1 ASCII 0 Keyboard 1 Movement Arrows Keybinds 0 Fullscreen 1 Font 24/Smallcaps Map View 50x35 Zoom Use 0% Tactical HUD 1 Map Filters NONE Filters NONE Steam 1 RUN: 5999e2d2-0709-41a4-8bdf-b433fe46a7f3